bitfinex-derivatives/quotes_BTCF0:USTF0_20250309
["timestamp","ask_amount","ask_price","bid_price","bid_amount"]
[1741521786319,0.62964349,85001.0,84984.0,0.20976363]
[1741521786320,0.117689,84985.0,84984.0,0.20976363]
[1741521786511,0.196089,84985.0,84984.0,0.20976363]
[1741521787621,0.556889,84985.0,84984.0,0.20976363]
[1741521787823,0.590189,84985.0,84984.0,0.24196363]
[1741521788217,0.60188941,84985.0,84984.0,0.24196363]
[1741521790022,0.60188941,84985.0,84984.0,0.0322]
[1741521793030,0.0588517,84975.0,84971.0,0.20976363]
[1741521793223,0.1177056,84973.0,84972.0,0.093]
[1741521793721,0.1804056,84973.0,84972.0,0.093]
[1741521795024,0.1804056,84973.0,84969.0,0.3608]
[1741521795229,0.1177111,84969.0,84968.0,0.0302]
[1741521795527,0.1961111,84969.0,84968.0,0.0302]
[1741521795928,0.1961111,84969.0,84968.0,0.0618]
[1741521796126,0.27075216,84969.0,84968.0,0.0618]
[1741521797427,0.51384106,84969.0,84967.0,0.20976363]
[1741521797620,0.1177125,84968.0,84967.0,0.20976363]
[1741521798021,0.1793125,84968.0,84967.0,0.20976363]
[1741521798331,0.1177125,84968.0,84967.0,0.20976363]
[1741521798531,0.07900001,84969.0,84965.0,0.1177165]
[1741521798720,0.0588563,84968.0,84965.0,0.1177165]
[1741521798920,0.1177153,84966.0,84965.0,0.1177165]
[1741521801829,0.02296,84968.0,84967.0,0.1177139]
[1741521802023,0.10132,84968.0,84967.0,0.1177139]
[1741521802228,0.2190325,84968.0,84967.0,0.1177139]
[1741521803223,0.1177153,84966.0,84965.0,0.07069286]
[1741521803825,0.1177153,84966.0,84965.0,0.01183516]
[1741521804132,0.117718,84964.0,84963.0,0.394]
[1741521804333,0.117718,84964.0,84963.0,0.40648]
[1741521804923,0.12934186,84964.0,84963.0,0.40648]
[1741521805127,0.16254186,84964.0,84963.0,0.40648]
[1741521805826,0.16254186,84964.0,84963.0,0.01248]
[1741521806026,0.24090186,84964.0,84963.0,0.01248]
[1741521808635,0.60170186,84964.0,84963.0,0.01248]
[1741521808935,0.48398386,84964.0,84954.0,0.20976363]
[1741521809132,0.4491105,84955.0,84954.0,0.20976363]
[1741521809326,0.7159105,84955.0,84954.0,0.20976363]
[1741521809630,0.7159105,84955.0,84954.0,0.1323851]
[1741521809823,0.7159105,84955.0,84954.0,0.0937313]
[1741521810025,0.66178,84955.0,84940.0,0.0937313]
[1741521810226,0.1177499,84941.0,84940.0,0.0937313]
[1741521810428,0.1961099,84941.0,84940.0,0.0937313]
[1741521810829,0.2080324,84941.0,84940.0,0.0937313]
[1741521811132,0.2736324,84941.0,84940.0,0.0937313]
[1741521813722,0.6344324,84941.0,84940.0,0.0937313]
[1741521815230,0.5166825,84941.0,84917.0,0.36148]
[1741521815431,0.35476,84934.0,84921.0,0.0313]
[1741521815635,0.1177763,84922.0,84921.0,0.0313]
[1741521815937,0.1961363,84922.0,84921.0,0.0313]
[1741521816130,0.20778966,84922.0,84921.0,0.0313]
[1741521816326,0.1177818,84918.0,84917.0,0.3608]
[1741521816531,0.0706818,84918.0,84917.0,0.3608]
[1741521817237,0.1010818,84918.0,84917.0,0.3608]
[1741521820544,0.1010818,84918.0,84915.0,0.06561]
[1741521820741,0.1177846,84916.0,84915.0,0.06561]
[1741521821043,0.3063046,84916.0,84915.0,0.06561]
[1741521821234,0.3707046,84916.0,84915.0,0.06561]
[1741521825442,0.4491046,84916.0,84915.0,0.06561]
[1741521831748,0.4491046,84916.0,84915.0,0.04218]
[1741521834650,0.3707046,84916.0,84915.0,0.04218]
[1741521834849,0.4491046,84916.0,84915.0,0.04218]
[1741521838653,0.39623525,84916.0,84915.0,0.04218]
[1741521844561,0.75703525,84916.0,84915.0,0.04218]
[1741521846461,0.75703525,84916.0,84915.0,0.10658]
[1741521846664,0.81432914,84916.0,84915.0,0.10658]
[1741521849059,0.81432914,84916.0,84915.0,0.04218]
[1741521849657,0.81432914,84916.0,84915.0,0.07238]
[1741521849857,0.81432914,84916.0,84915.0,0.04218]
[1741521850060,0.75703525,84916.0,84915.0,0.04218]
[1741521851061,0.67863525,84916.0,84915.0,0.04218]
[1741521851254,0.75699525,84916.0,84915.0,0.04218]
[1741521851867,0.75699525,84916.0,84915.0,0.10498]
[1741521852767,0.75699525,84916.0,84915.0,0.04218]
[1741521853669,0.75699525,84916.0,84915.0,0.07328]
[1741521855270,0.75699525,84916.0,84915.0,0.04218]
[1741521856266,0.75699525,84916.0,84915.0,1e-07]
[1741521858068,0.75699525,84916.0,84913.0,0.02315]
[1741521858069,0.1178054,84901.0,84900.0,0.1]
[1741521858365,0.9177654,84901.0,84900.0,0.1]
[1741521858756,0.9177654,84901.0,84900.0,0.05612184]
[1741521859367,0.9804654,84901.0,84900.0,0.05612184]
[1741521860056,0.86266,84901.0,84893.0,0.14788251]
[1741521860262,0.4786151,84894.0,84893.0,0.14788251]
[1741521860468,0.7455751,84894.0,84893.0,0.14788251]
[1741521860668,0.7455751,84894.0,84893.0,0.10273251]
[1741521860964,0.7576251,84894.0,84893.0,0.10273251]
[1741521861163,0.8229251,84894.0,84893.0,0.10273251]
[1741521862162,0.8229251,84894.0,84893.0,0.06795031]
[1741521862471,0.8229251,84894.0,84893.0,0.02253979]
[1741521863175,0.8229251,84894.0,84890.0,0.0589103]
[1741521863176,0.68404404,84894.0,84890.0,0.0589103]
[1741521863473,0.1178179,84892.0,84891.0,0.0614]
[1741521863871,0.1797179,84892.0,84891.0,0.0614]
[1741521864470,0.0619,84892.0,84876.0,0.3608]
[1741521864665,0.1178387,84877.0,84876.0,0.3608]
[1741521864864,0.1961987,84877.0,84874.0,0.00176721]
[1741521865064,0.1178415,84875.0,84874.0,0.00176721]
[1741521866572,0.3692415,84875.0,84874.0,0.00176721]
[1741521867367,0.37792319,84875.0,84874.0,0.00176721]
[1741521868173,0.0589223,84873.0,84860.0,0.3608]
[1741521868370,0.14116,84872.0,84870.0,0.0634]
[1741521868567,0.3179286,84872.0,84871.0,0.0322]
[1741521868968,0.3179286,84872.0,84871.0,0.0651]
[1741521870371,0.1178665,84857.0,84856.0,0.0961]
[1741521870566,0.1962265,84857.0,84856.0,0.0961]
[1741521870778,0.19610475,84857.0,84856.0,0.0961]
[1741521872183,0.117872,84853.0,84852.0,0.3608]
[1741521872876,0.12980629,84853.0,84852.0,0.3608]
[1741521873574,0.1178845,84844.0,84843.0,0.0936]
[1741521873767,0.1962445,84844.0,84843.0,0.0936]
[1741521874571,0.6207445,84844.0,84843.0,0.0936]
[1741521875272,0.1178929,84838.0,84837.0,0.00176798]
[1741521875575,0.1179054,84829.0,84828.0,0.0624]
[1741521875787,0.1962654,84829.0,84828.0,0.0624]
[1741521876167,0.1962654,84829.0,84828.0,0.1803068]
[1741521876980,0.1962654,84829.0,84828.0,0.0624]
[1741521877479,0.1962654,84829.0,84825.0,0.3608]
[1741521877480,0.20807961,84829.0,84825.0,0.3608]
[1741521877670,0.1179096,84826.0,84825.0,0.3608]
[1741521878575,0.1179096,84826.0,84825.0,0.3931]
[1741521878771,0.1516539,84828.0,84814.0,0.3608]
[1741521878983,0.0589562,84824.0,84814.0,0.3608]
[1741521879174,0.0680645,84829.0,84824.0,0.1179112]
[1741521879373,0.1962668,84828.0,84827.0,0.1179082]
[1741521879573,0.07836,84828.0,84827.0,0.1179082]
[1741521879770,0.1962668,84828.0,84827.0,0.1179082]
[1741521879970,0.1179096,84826.0,84825.0,0.1499103]
[1741521880177,0.1179096,84826.0,84825.0,0.032]
[1741521880481,0.1179151,84822.0,84821.0,0.3608]
[1741521880670,0.1962751,84822.0,84821.0,0.3608]
[1741521880874,0.0589432,84843.0,84828.0,0.1179068]
[1741521881182,0.19648223,84829.0,84828.0,0.4787068]
[1741521881782,0.19648223,84829.0,84828.0,0.3608]
[1741521882376,0.26078223,84829.0,84828.0,0.3608]
[1741521882886,0.19648223,84829.0,84828.0,0.3608]
[1741521883077,0.19648223,84829.0,84828.0,0.4787068]
[1741521883677,0.19648223,84829.0,84828.0,0.3608]
[1741521883876,0.19648223,84829.0,84828.0,0.4787068]
[1741521884283,0.19648223,84829.0,84828.0,0.3608]
[1741521884783,0.26088223,84829.0,84828.0,0.3608]
[1741521885684,0.19648223,84829.0,84828.0,0.3608]
[1741521885881,0.19648223,84829.0,84828.0,0.4787068]
[1741521886190,0.00017683,84829.0,84828.0,0.4787068]
[1741521886388,0.19648223,84829.0,84822.0,0.0314]
[1741521886686,0.1179137,84823.0,84822.0,0.0314]
[1741521886878,0.1963137,84823.0,84822.0,0.0314]
[1741521887679,0.2591137,84823.0,84822.0,0.0314]
[1741521888480,0.2591137,84823.0,84821.0,0.3608]
[1741521888481,0.1179151,84822.0,84821.0,0.3608]
[1741521888878,0.1807151,84822.0,84821.0,0.3608]
[1741521890183,0.1179151,84822.0,84821.0,0.3608]
[1741521890578,0.1802151,84822.0,84821.0,0.3608]
[1741521891289,0.3608,84842.0,84825.0,0.0589552]
[1741521891478,0.0784,84835.0,84828.0,0.4787068]
[1741521891875,0.1179082,84827.0,84826.0,0.269018]
[1741521892085,0.1179082,84827.0,84826.0,0.151109]
[1741521892281,0.1179082,84827.0,84826.0,0.1511096]
[1741521892484,0.17703783,84829.0,84828.0,0.1179068]
[1741521892885,0.25543783,84829.0,84828.0,0.1179068]
[1741521893282,0.17703783,84829.0,84828.0,0.1179068]
[1741521893487,0.25543783,84829.0,84828.0,0.1179068]
[1741521894392,0.00017683,84829.0,84828.0,0.1179068]
[1741521894894,0.11808223,84829.0,84828.0,0.1179068]
[1741521897799,0.11808223,84829.0,84828.0,0.1792068]
[1741521898201,0.11808223,84829.0,84828.0,0.5400068]
[1741521898496,0.11808223,84829.0,84828.0,0.4787068]
[1741521898704,0.18208223,84829.0,84828.0,0.4787068]
[1741521899195,0.18208223,84829.0,84828.0,0.5401068]
[1741521899395,0.15018223,84829.0,84828.0,0.5401068]
[1741521900000,0.15018223,84829.0,84828.0,0.1793068]
[1741521900201,0.15018223,84829.0,84828.0,0.1179068]
[1741521900396,0.1179165,84821.0,84820.0,0.1312168]
[1741521900601,0.1963165,84821.0,84820.0,0.1312168]
[1741521901100,0.1963165,84821.0,84820.0,0.0324]
[1741521901287,0.2589165,84821.0,84820.0,0.0324]
[1741521901899,0.2589165,84821.0,84820.0,0.1503179]
[1741521902100,0.2589165,84821.0,84820.0,0.0324]
[1741521902693,0.1179248,84815.0,84814.0,0.0638]
[1741521902901,0.1963248,84815.0,84814.0,0.1817262]
[1741521903103,0.2612248,84815.0,84814.0,0.1817262]
[1741521905796,0.2612248,84815.0,84814.0,0.0324]
[1741521906002,0.2917248,84815.0,84814.0,0.0324]
[1741521906901,0.2917248,84815.0,84814.0,0.1503262]
[1741521906902,0.2612248,84815.0,84814.0,0.1503262]
[1741521908000,0.1433,84815.0,84814.0,0.1503262]
[1741521908400,0.2612248,84815.0,84814.0,0.1813262]
[1741521909309,0.2612248,84815.0,84814.0,0.0634]
[1741521909505,0.2612248,84815.0,84814.0,0.1813262]
[1741521910705,0.2612248,84815.0,84814.0,0.1503262]
[1741521911007,0.2612248,84815.0,84814.0,0.1179262]
[1741521911706,0.2612248,84815.0,84814.0,0.4787262]
[1741521913593,0.2612248,84815.0,84814.0,0.3608]
[1741521915197,0.2612248,84815.0,84814.0,0.4787262]
[1741521915601,0.2612248,84815.0,84814.0,0.5410262]
[1741521916008,0.2612248,84815.0,84814.0,0.3608]
[1741521916507,0.3201878,84815.0,84814.0,0.3608]
[1741521917104,0.202263,84815.0,84809.0,0.36109505]
[1741521917306,0.1179318,84810.0,84809.0,0.34927593]
[1741521917502,0.1179318,84810.0,84809.0,0.46720913]
[1741521917807,0.1963318,84810.0,84809.0,0.46720913]
[1741521918211,0.2598318,84810.0,84809.0,0.1179332]
[1741521918405,0.1419,84810.0,84808.0,0.3926]
[1741521918611,0.1179332,84809.0,84808.0,0.3608]
[1741521918804,0.1179332,84809.0,84808.0,0.4787346]
[1741521919005,0.1814332,84809.0,84808.0,0.4787346]
[1741521919505,0.1814332,84809.0,84808.0,0.3608]
[1741521920812,0.1814332,84809.0,84808.0,0.4787346]
[1741521921704,0.1814332,84809.0,84808.0,0.3608]
[1741521922307,0.7309932,84809.0,84805.0,0.34927593]
[1741521922507,0.1179443,84801.0,84799.0,0.34927593]
[1741521922709,0.1963443,84801.0,84799.0,0.34927593]
[1741521923209,0.20796981,84801.0,84799.0,0.34927593]
[1741521923906,0.20796981,84801.0,84800.0,0.10143358]
[1741521924208,0.30316981,84801.0,84800.0,0.10143358]
[1741521924411,0.22476981,84801.0,84800.0,0.10143358]
[1741521924609,0.30316981,84801.0,84800.0,0.10143358]
[1741521924817,0.31199456,84801.0,84800.0,0.10143358]
[1741521925109,0.67279456,84801.0,84800.0,0.10143358]
[1741521934309,0.59439456,84801.0,84800.0,0.10143358]
[1741521934510,0.67279456,84801.0,84800.0,0.10143358]
[1741521937415,1.28475026,84801.0,84776.0,0.17757813]
[1741521937610,0.1179874,84770.0,84769.0,0.17684794]
[1741521937816,0.1179874,84770.0,84742.0,0.69463717]
[1741521937817,0.1179986,84762.0,84754.0,0.0317]
[1741521938015,0.43924,84762.0,84757.0,0.1180043]
[1741521938218,0.5572386,84762.0,84754.0,0.0304]
[1741521938516,0.56930642,84762.0,84754.0,0.0304]
[1741521938720,0.56930642,84762.0,84753.0,0.4211931]
[1741521938921,0.56930642,84762.0,84761.0,0.35055628]
[1741521939617,0.56930642,84762.0,84761.0,0.06881179]
[1741521940412,0.1180097,84754.0,84753.0,0.4211931]
[1741521940714,0.5579697,84754.0,84753.0,0.4211931]
[1741521941019,0.118025,84743.0,84742.0,0.69471717]
[1741521941208,0.747625,84743.0,84742.0,0.69403717]
[1741521941413,0.62968,84743.0,84742.0,0.81206357]
[1741521941613,0.44088,84743.0,84742.0,0.69403717]
[1741521941819,0.509005,84743.0,84742.0,0.69403717]
[1741521942119,0.509005,84743.0,84742.0,0.71054944]
[1741521942312,0.198105,84743.0,84742.0,0.69403717]
[1741521943022,0.118025,84743.0,84742.0,0.69403717]
[1741521943216,0.0590115,84745.0,84742.0,0.69403717]
[1741521943217,0.50041031,84747.0,84742.0,0.0166775]
[1741521943421,0.50041031,84747.0,84737.0,0.1510333]
[1741521943422,0.1180236,84744.0,84743.0,0.0331]
[1741521944920,0.1481236,84744.0,84743.0,0.0331]
[1741521945118,0.1180236,84744.0,84743.0,0.0331]
[1741521947421,0.1180236,84744.0,84743.0,0.151125]
[1741521947622,0.1180236,84744.0,84743.0,0.0331]
[1741521948419,0.11791901,84744.0,84743.0,0.0331]
[1741521949015,0.11791901,84744.0,84743.0,0.151125]
[1741521949719,0.11791901,84744.0,84743.0,0.16275986]
[1741521950115,0.11791901,84744.0,84743.0,0.04967104]
[1741521950325,0.11791901,84744.0,84743.0,0.16769604]
[1741521950824,0.11791901,84744.0,84743.0,0.04967104]
[1741521951221,0.11791901,84744.0,84743.0,0.16769604]
[1741521952725,0.11791901,84744.0,84743.0,0.04967104]
[1741521953525,0.11791901,84744.0,84743.0,0.16769604]
[1741521953725,0.11791901,84744.0,84743.0,0.19839604]
[1741521954313,0.11791901,84744.0,84743.0,0.08037104]
[1741521954728,0.11791901,84744.0,84743.0,0.04967104]
[1741521956713,0.16293069,84744.0,84743.0,0.0331]
[1741521956920,0.1180473,84727.0,84721.0,0.0133]
[1741521957117,0.1180473,84727.0,84726.0,0.23331331]
[1741521957317,0.1981673,84727.0,84726.0,0.23331331]
[1741521957624,0.1981673,84727.0,84726.0,0.23331742]
[1741521958024,0.2282673,84727.0,84726.0,0.01651742]
[1741521958227,0.1180529,84723.0,84722.0,0.0318]
[1741521958532,0.4788529,84723.0,84722.0,0.0318]
[1741521958833,0.1180668,84713.0,84712.0,0.00177054]
[1741521959027,0.5002338,84713.0,84691.0,0.01170349]
[1741521959228,0.5002338,84713.0,84706.0,0.1180758]
[1741521959229,0.1180771,84707.0,84706.0,0.1180758]
[1741521959526,0.2577132,84707.0,84706.0,0.01475975]
[1741521960629,0.0806,84707.0,84706.0,0.13283635]
[1741521960929,0.00017695,84731.0,84706.0,0.24563975]
[1741521961128,0.00017695,84731.0,84730.0,0.1180431]
[1741521961426,0.11821875,84731.0,84730.0,0.1180431]
[1741521961825,0.11821875,84731.0,84730.0,0.13280285]
[1741521962025,0.11821875,84731.0,84730.0,0.19440285]
[1741521962325,0.11821875,84731.0,84730.0,0.22268862]
[1741521962526,0.00017695,84731.0,84730.0,0.22268862]
[1741521962729,0.04141,84745.0,84730.0,0.10464552]
[1741521963032,0.1180248,84744.0,84741.0,0.1180278]
[1741521963223,0.4788264,84742.0,84741.0,0.13466336]
[1741521963531,0.4788264,84742.0,84741.0,0.14942311]
[1741521963734,0.4788264,84742.0,84741.0,0.03139531]
[1741521963926,0.4788264,84742.0,84741.0,0.09369531]
[1741521964933,0.4788264,84742.0,84741.0,0.03139531]
[1741521965120,0.4788264,84742.0,84741.0,0.01475975]
[1741521965523,0.4788264,84742.0,84741.0,0.13278755]
[1741521965719,0.4788264,84742.0,84741.0,0.01475975]
[1741521966127,0.5098264,84742.0,84741.0,0.01475975]
[1741521966826,0.4788264,84742.0,84741.0,0.13278755]
[1741521967225,0.4788264,84742.0,84741.0,0.04505975]
[1741521967626,0.5111264,84742.0,84741.0,0.01475975]
[1741521967823,0.5412264,84742.0,84741.0,0.01475975]
[1741521968731,0.1180376,84734.0,84733.0,0.00017706]
[1741521969037,0.5902131,84731.0,84695.0,0.3608]
[1741521969235,0.1180794,84704.0,84701.0,0.42160105]
[1741521969534,0.1180822,84702.0,84701.0,0.42160105]
[1741521969933,0.1504822,84702.0,84701.0,0.42160105]
[1741521970123,0.1504822,84702.0,84701.0,0.43822018]
[1741521970327,0.6612822,84702.0,84701.0,0.15656485]
[1741521970526,0.6612822,84702.0,84669.0,0.3608]
[1741521970527,0.82020775,84702.0,84634.0,0.3608]
[1741521970738,0.3608,84616.0,84610.0,0.04983217]
[1741521970928,0.1182231,84601.0,84600.0,0.04346665]
[1741521971123,0.1182567,84577.0,84576.0,1.1045049]
[1741521971436,0.9270567,84577.0,84576.0,1.0654427]
[1741521971630,0.9270567,84577.0,84576.0,0.0098857]
[1741521971631,1.0770567,84577.0,84576.0,0.0098857]
[1741521971833,0.1183,84546.0,84545.0,1.70638259]
[1741521972037,0.1183,84546.0,84508.0,0.0133]
[1741521972038,0.3642,84536.0,84501.0,0.0445628]
[1741521972236,0.3642,84536.0,84442.0,2.5630006]
[1741521972237,0.1184443,84443.0,84442.0,2.5630006]
[1741521972531,0.1184682,84426.0,84401.0,0.2301]
[1741521972724,0.7216,84426.0,84405.0,0.18896]
[1741521972925,0.8218,84426.0,84399.0,0.0302]
[1741521973128,0.3608,84401.0,84382.0,0.18896]
[1741521973526,0.3608,84402.0,84385.0,0.3608]
[1741521973728,0.10296,84401.0,84385.0,0.3608]
[1741521973931,0.00237061,84401.0,84400.0,0.17708459]
[1741521974238,0.3608,84403.0,84400.0,0.05857989]
[1741521974533,0.00244137,84401.0,84400.0,0.05857989]
[1741521974727,0.72404137,84401.0,84351.0,0.3608]
[1741521974924,0.3608,84401.0,84393.0,0.07091]
[1741521975132,0.10628,84400.0,84394.0,1.7732]
[1741521975336,0.3608,84395.0,84329.0,0.08183711]
[1741521975536,0.3608,84343.0,84330.0,1.253096]
[1741521975737,0.00131318,84400.0,84353.0,0.01]
[1741521975938,0.00920831,84405.0,84399.0,0.7216]
[1741521976146,0.0592125,84457.0,84417.0,0.08362227]
[1741521976327,0.00883401,84478.0,84476.0,0.3608]
[1741521976529,0.18936,84502.0,84477.0,0.7216]
[1741521976834,0.7954,84541.0,84513.0,0.3608]
[1741521976835,0.01303229,84541.0,84513.0,0.3608]
[1741521977138,0.01194098,84541.0,84540.0,0.7216]
[1741521977437,0.11292,84555.0,84530.0,0.3608]
[1741521977635,0.00887573,84567.0,84554.0,0.7216]
[1741521977841,0.1182875,84555.0,84554.0,0.29297742]
[1741521978135,0.11296,84555.0,84554.0,0.61235731]
[1741521978330,0.11288,84555.0,84554.0,0.61235731]
[1741521978634,0.2682875,84555.0,84554.0,0.61235731]
[1741521978838,0.3814075,84555.0,84554.0,0.56542321]
[1741521979040,0.263,84555.0,84554.0,0.56542321]
[1741521979340,0.07968,84563.0,84560.0,0.02366]
[1741521979641,0.0591082,84606.0,84554.0,0.56542321]
[1741521979642,0.11392,84576.0,84564.0,0.47333003]
[1741521979831,0.031,84581.0,84575.0,0.3608]
[1741521980026,0.1182987,84547.0,84535.0,0.3608]
[1741521980229,0.47624,84547.0,84480.0,0.3608]
[1741521980430,0.3608,84512.0,84480.0,0.3608]
[1741521980629,0.3608,84483.0,84460.0,0.36076]
[1741521980835,0.3608,84472.0,84461.0,0.3652]
[1741521981038,0.11604,84475.0,84461.0,0.62437003]
[1741521981225,0.3608,84462.0,84440.0,0.47333003]
[1741521981429,0.3608,84452.0,84441.0,0.11824]
[1741521981627,0.3608,84462.0,84461.0,0.59157003]
[1741521981830,0.13517841,84549.0,84461.0,0.59157003]
[1741521981831,0.1164,84510.0,84470.0,0.47333003]
[1741521982135,0.11648,84519.0,84504.0,0.47333003]
[1741521982345,0.3608,84517.0,84507.0,0.83413003]
[1741521982528,2.40724713,84511.0,84510.0,0.59132521]
[1741521982731,2.40724713,84511.0,84510.0,0.3608]
[1741521983039,2.33905413,84511.0,84510.0,1.31732521]
[1741521983341,0.11656,84561.0,84545.0,0.1183005]
[1741521983538,0.3608,84546.0,84533.0,0.3608]
[1741521983742,0.1489,84545.0,84533.0,0.3608]
[1741521984036,0.0591521,84543.0,84529.0,0.3608]
[1741521984228,0.1183037,84544.0,84509.0,0.3608]
[1741521984229,0.1760315,84544.0,84509.0,0.3608]
[1741521984538,0.3608,84530.0,84528.0,0.0001774]
[1741521984744,0.47748,84529.0,84494.0,0.3608]
[1741521984933,0.11684,84528.0,84507.0,0.47297481]
[1741521985131,0.11684,84528.0,84496.0,0.1183687]
[1741521985132,0.3608,84508.0,84490.0,0.47297481]
[1741521985333,0.11716,84507.0,84505.0,0.3608]
[1741521985528,0.3608,84523.0,84505.0,0.3608]
[1741521985529,0.11716,84506.0,84505.0,0.3608]
[1741521985927,0.00017752,84514.0,84513.0,0.1183462]
[1741521986127,0.11704,84533.0,84513.0,1.9734703]
[1741521986335,0.00977113,84536.0,84535.0,0.59129021]
[1741521986645,0.3608,84555.0,84535.0,1.0580303]
[1741521986937,0.11708,84554.0,84536.0,0.58505549]
[1741521987132,0.75233213,84562.0,84558.0,0.47297481]
[1741521987336,0.00060001,84562.0,84559.0,0.78069671]
[1741521987536,0.00017739,84567.0,84559.0,0.66241481]
[1741521987730,0.1172,84562.0,84559.0,0.86832676]
[1741521988039,0.00017739,84567.0,84559.0,0.98660866]
[1741521988241,0.00017739,84567.0,84559.0,1.23352676]
[1741521988540,0.3608,84588.0,84566.0,0.09383127]
[1741521988734,0.117,84587.0,84586.0,0.1182441]
[1741521988939,0.4778,84587.0,84575.0,0.09383127]
[1741521989134,0.11688,84586.0,84577.0,0.09383127]
[1741521989331,0.11688,84586.0,84571.0,0.09383127]
[1741521989538,0.11688,84586.0,84579.0,0.10309467]
[1741521989840,0.00017739,84590.0,84586.0,0.0591217]
[1741521990042,0.3608,84587.0,84573.0,0.00017739]
[1741521990237,0.3608,84587.0,84574.0,0.10309467]
[1741521990238,0.11676,84586.0,84574.0,0.10309467]
[1741521990537,0.11676,84586.0,84573.0,0.00017739]
[1741521990538,0.1182609,84574.0,84573.0,0.00017739]
[1741521990741,0.1182833,84558.0,84532.0,0.3608]
[1741521990935,0.1182868,84556.0,84542.0,0.18944]
[1741521991240,0.3608,84555.0,84544.0,0.10309467]
[1741521991445,0.1182996,84547.0,84544.0,0.10309467]
[1741521991638,0.1183014,84545.0,84544.0,0.10309467]
[1741521991836,0.07610678,84545.0,84542.0,0.18944]
[1741521992032,0.58690678,84545.0,84536.0,0.00017739]
[1741521992339,0.58690678,84545.0,84510.0,0.00177478]
[1741521992340,0.3608,84537.0,84508.0,0.1894]
[1741521992531,0.3608,84509.0,84487.0,0.00084]
[1741521992735,0.3608,84502.0,84488.0,0.10309467]
[1741521992945,0.11716,84506.0,84497.0,0.1183683]
[1741521993140,0.00652149,84501.0,84498.0,0.5546]
[1741521993442,0.3608,84512.0,84498.0,0.5546]
[1741521993443,0.3608,84512.0,84499.0,0.3652]
[1741521993646,0.3608,84528.0,84503.0,0.3608]
[1741521993838,0.00977113,84530.0,84505.0,0.10309467]
[1741521994044,0.00977113,84530.0,84504.0,0.44689642]
[1741521994247,0.00977113,84530.0,84510.0,0.0591746]
[1741521994546,0.3608,84535.0,84521.0,0.1183341]
[1741521994740,0.00017752,84528.0,84524.0,0.1183298]
[1741521994945,0.00017752,84528.0,84527.0,0.1183266]
[1741521995242,0.00017752,84528.0,84527.0,0.1894]
[1741521995552,0.00017752,84528.0,84527.0,0.29249467]
[1741521996145,0.00017752,84528.0,84527.0,0.23321845]
[1741521996449,0.00017752,84528.0,84504.0,0.00992175]
[1741521996450,0.48752249,84528.0,84504.0,0.00992175]
[1741521996744,0.48752249,84528.0,84513.0,0.04381845]
[1741521996745,0.1183448,84514.0,84513.0,0.04381845]
[1741521996940,0.3608,84515.0,84513.0,0.04381845]
[1741521997135,0.00977113,84520.0,84519.0,0.1183378]
[1741521997335,0.00017752,84528.0,84518.0,0.11628]
[1741521997535,0.1183364,84520.0,84519.0,0.04381845]
[1741521997746,0.1183364,84520.0,84513.0,0.14656]
[1741521997747,0.3608,84524.0,84514.0,0.04381845]
[1741521997939,0.3608,84524.0,84505.0,0.0311]
[1741521997940,0.1183462,84513.0,84505.0,0.0311]
[1741521998134,0.11624,84516.0,84512.0,0.04399597]
[1741521998346,0.1183715,84495.0,84494.0,0.09706961]
[1741521998549,0.4791715,84495.0,84494.0,0.09706961]
[1741521999042,0.49639772,84495.0,84494.0,0.09706961]
[1741521999250,0.1183855,84485.0,84484.0,0.19121532]
[1741521999544,0.5951855,84485.0,84484.0,0.19121532]
[1741521999945,0.1183883,84483.0,84482.0,0.02537545]
[1741522000544,0.37130561,84485.0,84482.0,0.02537545]
[1741522000747,0.0009055,84483.0,84482.0,0.02537545]
[1741522001049,0.01723031,84483.0,84479.0,0.0766568]
[1741522001251,0.00982561,84483.0,84479.0,0.0766568]
[1741522001445,0.01069428,84483.0,84482.0,0.1183897]
[1741522002244,1.15844946,84485.0,84484.0,0.1183869]
[1741522002440,0.11548,84501.0,84482.0,0.0591944]
[1741522002642,0.11548,84501.0,84500.0,0.1183644]
[1741522002844,0.11548,84501.0,84489.0,0.3608]
[1741522002845,0.1183643,84501.0,84497.0,0.118368]
[1741522003047,0.00265212,84500.0,84498.0,0.0215]
[1741522003247,0.00265212,84500.0,84499.0,0.1183658]
[1741522003553,0.3608,84502.0,84498.0,0.0215]
[1741522003847,0.00265212,84500.0,84499.0,0.1775483]
[1741522004048,0.00265212,84500.0,84498.0,0.1398665]
[1741522004260,0.00017752,84503.0,84502.0,0.1183616]
[1741522004443,0.77021289,84503.0,84502.0,0.13491793]
[1741522004639,0.77021289,84503.0,84501.0,0.119243]
[1741522004840,0.77021289,84503.0,84502.0,0.1506616]
[1741522005352,1.13101289,84503.0,84502.0,0.6658616]
[1741522005548,1.13682586,84503.0,84502.0,0.6658616]
[1741522006055,2.42680501,84503.0,84502.0,0.6658616]
[1741522006251,2.42680501,84503.0,84502.0,0.46058853]
[1741522006443,2.42680501,84503.0,84502.0,0.57895013]
[1741522007744,1.88026815,84503.0,84502.0,0.79575013]
[1741522007942,0.62306016,84503.0,84502.0,0.79575013]
[1741522008144,0.7333168,84517.0,84510.0,0.1183504]
[1741522008343,0.7333168,84517.0,84506.0,0.0591774]
[1741522008344,0.3608,84537.0,84512.0,0.0591737]
[1741522008649,0.4791336,84522.0,84517.0,0.0591697]
[1741522008851,0.3608,84522.0,84521.0,0.118335]
[1741522009048,0.3608,84522.0,84521.0,0.232375]
[1741522009258,0.3608,84528.0,84521.0,0.11404]
[1741522009552,0.4791252,84528.0,84527.0,0.1183266]
[1741522009748,0.3608,84528.0,84527.0,0.1183266]
[1741522009947,0.1183243,84529.0,84527.0,0.1183266]
[1741522010147,0.00017752,84530.0,84529.0,0.1183238]
[1741522010350,0.00017752,84530.0,84529.0,0.2320438]
[1741522010549,0.00017752,84530.0,84529.0,0.11372]
[1741522010853,0.71597752,84530.0,84511.0,0.18944]
[1741522011050,0.1183322,84525.0,84524.0,0.1183279]
[1741522011242,0.36097752,84530.0,84529.0,0.1183238]
[1741522011549,0.36097752,84530.0,84523.0,0.10144749]
[1741522011749,0.0591687,84520.0,84517.0,0.79652]
[1741522011946,0.1183392,84518.0,84517.0,0.79572]
[1741522012141,0.0328,84519.0,84518.0,0.1183392]
[1741522012344,0.0328,84519.0,84517.0,0.90976]
[1741522012345,0.1183392,84518.0,84517.0,0.90976]
[1741522012554,0.1183392,84518.0,84517.0,0.79572]
[1741522012754,0.1511392,84518.0,84517.0,0.9140606]
[1741522013053,0.15994382,84518.0,84517.0,0.9140606]
[1741522013251,0.15994382,84518.0,84517.0,0.79572]
[1741522013556,0.07320462,84518.0,84517.0,0.9140606]